[Event "Super United Croatia GCT Blitz 2022"]
[Site "Zagreb"]
[Date "2022.07.24"]
[Round "18"]
[White "Saric, Ivan"]
[Black "Carlsen, Magnus"]
[Result "1-0"]
[ECO "C87"]
[WhiteElo "2680"]
[BlackElo "2864"]
[Annotator "TA"]
[PlyCount "91"]
[EventDate "2022.07.20"]
[EventType "tourn"]
[EventCountry "CRO"]
[SourceTitle "playchess.com"]
[Source "ChessBase"]
[SourceQuality "1"]
[TimeControl "300+2"]

{[%evp 18,91,58,52,51,40,53,30,37,44,42,31,48,30,110,96,147,140,147,143,166,146,219,231,228,235,262,227,238,208,269,179,183,186,248,227,281,292,350,341,328,340,433,405,540,533,509,467,679,672,1741,1702,1623,1210,2176,1037,1161,862,793,693,5321,5314,5289,4586,29988,29989,29989,29990,29989,1040,29969,29969,29994,1021,857,854]} 1. e4 {[%emt 0:00:01]} e5 {[%emt 0:00:01]} 2. Nf3 {[%emt 0:00:00]} Nc6 {[%emt 0:00:01]} 3. Bb5 {[%emt 0:00:02]} a6 {[%emt 0:00:02]} 4. Ba4 {[%emt 0:00:00]} Nf6 {[%emt 0:00:04]} 5. O-O {[%emt 0:00:02]} Be7 {[%emt 0:00:05]} 6. Re1 {[%emt 0:00:03]} d6 {[%emt 0:00:02]} 7. c3 {[%emt 0:00:02]} O-O {[%emt 0:00:12]} 8. h3 {[%emt 0:00:05]} Nd7 {[%emt 0:00:07]} 9. d4 {[%emt 0:00:02]} Bf6 {[%emt 0:00:06]} 10. Be3 {[%emt 0:00:18]} b5 {[%emt 0:00:55] C87: Closed Ruy Lopez: Steinitz-type lines after 6 Re1 d6.} 11. Bc2 {[%emt 0:00:17] [#]} exd4 $146 {[%emt 0:00:19]} ({Predecessor:} 11... Nb6 12. Nbd2 Re8 13. d5 Ne7 14. b3 c5 15. a4 Bd7 16. Bd3 Ng6 17. Bf1 Qc7 18. g3 {1-0 (76) Adams,M (2720)-Davies,N (2521) Birmingham 2006}) 12. cxd4 {[%emt 0:00:15]} Nb4 {[%emt 0:00:01] White has an edge.} 13. Bb3 {[%emt 0:00:01]} c5 {[%emt 0:00:03]} 14. a3 {[%emt 0:00:19]} Nc6 {[%emt 0:00:01]} 15. Nc3 {[%emt 0:00:06]} c4 {[%emt 0:00:38]} (15... Bb7 $11) 16. Bc2 $16 {[%emt 0:00:09]} g6 {[%emt 0:00:55]} (16... Re8 $142) 17. Nd5 $36 {[%emt 0:00:09][%mdl 2048] White is really pushing.} Bg7 {[%emt 0:00:02]} 18. Bg5 {[%emt 0:00:00] Inhibits Ne7. White is more active.} f6 {[%emt 0:00:34]} 19. Bf4 {[%emt 0:00:01]} Ndb8 {[%emt 0:00:00]} (19... Ne7 $16 {might work better.}) 20. b3 $18 {[%emt 0:00:10]} cxb3 {[%emt 0:00:04]} 21. Bxb3 {[%emt 0:00:01]} Kh8 {[%emt 0:00:01]} 22. Rc1 {[%emt 0:00:03] And now e5 would win.} Ra7 {[%emt 0:00:01]} 23. Qd2 {[%emt 0:00:07] aiming for e5.} Be6 {[%emt 0:00:06]} 24. Ba2 {[%emt 0:00:28]} Bg8 {[%emt 0:00:06]} 25. Rc2 {[%emt 0:00:14]} Ne7 {[%emt 0:00:17]} (25... Rb7 $142 26. Bg3 Qd7) 26. Qb4 {[%emt 0:00:52] Nxe7 is the strong threat.} Rd7 {[%emt 0:00:27]} 27. Nxe7 {[%emt 0:00:21]} Qxe7 {[%emt 0:00:01]} 28. Bxg8 {[%emt 0:00:01]} Rxg8 {[%emt 0:00:03]} 29. d5 {[%emt 0:00:03]} Re8 {[%emt 0:00:15]} 30. Nd4 {[%emt 0:00:03]} f5 {[%emt 0:00:02]} 31. Ne6 {[%emt 0:00:25]} fxe4 {[%emt 0:00:01]} 32. Rxe4 {[%emt 0:00:02]} Qf6 {[%emt 0:00:02]} (32... Be5 $142 33. Bg5 Qf7) 33. Bxd6 {[%emt 0:00:15][%cal Bf4d6,Bd6b4,Bb4c3,Bc3d2][%mdl 32]} Qf5 {[%emt 0:00:10]} 34. Nxg7 {[%emt 0:00:40]} Qxe4 {[%emt 0:00:03]} 35. Nxe8 {[%emt 0:00:01]} Qxe8 {[%emt 0:00:13]} 36. Qd4+ {[%emt 0:00:12]} (36. Qc3+ $142 Kg8 37. Qf6 Rxd6 38. Qxd6) 36... Kg8 {[%emt 0:00:01]} 37. Bb4 {[%emt 0:00:03] Hoping for Bc3.} h5 {[%emt 0:00:01]} 38. Bc3 {[%emt 0:00:04] Threatening mate with Qh8+.} Kh7 {[%emt 0:00:01] [#] Against Qh8+} 39. Re2 $3 {[%emt 0:00:02][%mdl 512]} Qg8 {[%emt 0:00:05]} 40. Qf6 {[%emt 0:00:09] White threatens Re7+ and mate.} Rf7 {[%emt 0:00:08]} 41. Re7 {[%emt 0:00:01]} Rxe7 {[%emt 0:00:01]} 42. Qxe7+ {[%emt 0:00:01]} Kh6 {[%emt 0:00:00]} 43. Bd2+ {[%emt 0:00:04]} g5 {[%emt 0:00:01]} 44. h4 {[%emt 0:00:09]} Qxd5 {[%emt 0:00:02]} 45. Bxg5+ {[%emt 0:00:02]} (45. hxg5+ $142 Kg6 46. Qf6+ Kh7 47. Qh6+ Kg8 48. Qg6+ Kh8 49. Bc3+ Qe5 50. Bxe5#) 45... Kg6 {[%emt 0:00:01]} 46. Qe8+ {[%emt 0:00:01] Black did not feel at home in the position after the opening.  Weighted Error Value: White=0.16 (very precise) /Black=0.53} 1-0